Cogmind - Beta 15 @@@ ROGUE MODE // 2025.07.28 @ 20:53:10 Player: biznut Result: Destroyed by Y-45 Defender with Heavy Assault Rifle Performance ------------- Evolutions (1) 500 Regions Visited (2) 400 Robots Destroyed (6) 30 Value Destroyed (204) 204 Prototype IDs (0) 0 Alien Tech Used (0) 0 Bonus (200) 200 TOTAL SCORE: 1334 Bonus ------- Pacifist 200 Cogmind --------- Core Integrity 0/400 Matter 300/300 Energy 99/100 System Corruption 0% Temperature Cool (27) Movement Core (100) Ox1 Location -9/Materials Parts ------- > --- POWER (1) -------- (None) > --- PROPULSION (3) --- (None) > --- UTILITY (3) ------ Small Storage Unit Sensor Array > --- WEAPON (2) ------- (None) > --- INVENTORY (8) ---- Ion Engine Weight Redist. System Plasma Cutter Peak State ------------ > --- POWER ------------ Improved Ion Engine > --- PROPULSION ------- Aluminum Leg Aluminum Leg Aluminum Leg > --- UTILITY ---------- Small Storage Unit Sensor Array Hardened Light Armor Plating > --- WEAPON ----------- Beam Rifle Heavy Assault Rifle > --- INVENTORY -------- Ion Engine Ion Engine Weight Redist. System Plasma Cutter [Rating: 13] Favorites ----------- Power Ion Engine Engine Ion Engine Propulsion Aluminum Leg Leg Aluminum Leg Utility Small Storage Unit Device Sensor Array Storage Small Storage Unit Protection Hardened Light Armor Plating Weapon Assault Rifle Energy Gun EM Pulse Gun Ballistic Gun Assault Rifle Special Weapon Plasma Cutter Build | -11 -10 -9 ------- Run | Yrd Mat Mat Slots Evolved 2 | . . 2 Power . | . . . Propulsion 1 | . . 1 Utility 1 | . . 1 Weapon . | . . . Parts Attached 15 | 6 1 8 Power 3 | 1 . 2 Engine 3 | 1 . 2 Core . | . . . Reactor . | . . . Propulsion 3 | 2 . 1 Treads . | . . . Leg 3 | 2 . 1 Wheel . | . . . Hover . | . . . Flight . | . . . Utility 3 | 1 1 1 Device 1 | . 1 . Storage 1 | 1 . . Processor . | . . . Hackware . | . . . Protection 1 | . . 1 Artifact . | . . . Weapon 6 | 2 . 4 Energy Gun 3 | 1 . 2 Energy Cannon . | . . . Ballistic Gun 2 | 1 . 1 Ballistic Cannon . | . . . Launcher . | . . . Special Weapon 1 | . . 1 Impact Weapon . | . . . Slashing Weapon . | . . . Piercing Weapon . | . . . Special Melee Weapon . | . . . Unidentified Prototypes . | . . . Parts Lost 9 | . . 9 Power 2 | . . 2 Propulsion 3 | . . 3 Utility 1 | . . 1 Weapon 3 | . . 3 Highest Loss Streak 5 | . . 5 To Critical Strikes . | . . . Average Backups 3 | . 2 3 Power 1 | . 1 1 Propulsion . | . . . Utility . | . . . Weapon . | . 1 . Tool/Special . | . . . Unused Backups 1 | . . 1 Power . | . . . Propulsion . | . . . Utility 1 | . . 1 Weapon . | . . . Tool/Special . | . . . Average Slot Usage (%) 87 | . 97 85 Engine 10 | . 14 10 Leg 25 | . 28 25 Device 11 | . 11 11 Storage 11 | . 14 11 Protection 5 | . . 7 Energy Gun 10 | . 14 9 Ballistic Gun 10 | . 14 9 Peak Build Rating 13 | 6 7 13 Average Rating 8 | 4 6 9 On Entrance 4 | . 6 7 Naked Turns . | . . . Heaviest Build 24 | 14 15 24 Greatest Support 30 | 20 20 30 Greatest Overweight (x) 6 | . . 6 Average Overweight (x) . | . . . Largest Inventory Capacity 8 | 8 8 8 Average Capacity 7 | 6 8 8 Most Carried 5 | 2 2 5 Average Carried 3 | . 2 3 Final Capacity 8 | 8 8 8 Final Carried 3 | 2 2 3 Class Distribution -------------------- 79% | Mutant 20% | Scavenger-Mutant Dominant Class ---------------- Mutant | -10/Materials Mutant | -9/Materials Resources | -11 -10 -9 ----------- Run | Yrd Mat Mat Matter Collected 386 | 225 . 161 Remotely . | . . . Salvage Created 243 | . . 243 Parts 15 | . . 15 Haulers Intercepted . | . . . Recyclers Shooed . | . . . Parts Field Recycled . | . . . Retrieved Matter . | . . . Parts Self-Destructed . | . . . Prevented . | . . . Kills | -11 -10 -9 ------- Run | Yrd Mat Mat Combat Hostiles Destroyed 5 | . . 5 Guns 4 | . . 4 Cannons 1 | . . 1 Classes Destroyed 4 | . . 4 Worker 1 | . . 1 Swarmer 1 | . . 1 Grunt 3 | . . 3 Sentry 1 | . . 1 Best Kill Streak 1 | . . 1 Combat Bots Only 1 | . . 1 Max Kills in Single Turn 1 | . . 1 Gunslinging . | . . . Exploded . | . . . Melee . | . . . Uniques/NPCs Destroyed . | . . . Combat | -11 -10 -9 -------- Run | Yrd Mat Mat Hostile Shots Fired 186 | . . 186 Missed 71 | . . 71 Hits 115 | . . 115 Projectile 115 | . . 115 Critical Strikes 1 | . . 1 Damage Taken 1402 | . . 1402 Core 411 | . . 411 Absorbed by Shields . | . . . Core Remaining (%) 100 | 100 100 . Volleys Fired 31 | . 2 29 Largest 2 | . 2 2 Hottest 79 | . 60 79 Shots Fired 58 | . 4 54 Gun 53 | . 4 49 Cannon . | . . . Launcher . | . . . Special 5 | . . 5 Kinetic 26 | . 2 24 Thermal 19 | . . 19 Explosive . | . . . Electromagnetic 13 | . 2 11 Robot Hit Streak 10 | . . 10 Robot Miss Streak 5 | . 4 5 Penetration Max . | . . . Secondary Targets 1 | . . 1 Max Gunslinging Chain 1 | . . 1 Shots Hit Robots 32 | . . 32 Core Hits 11 | . . 11 Critical Kills . | . . . Critical Parts Destroyed . | . . . Critical Strikes 2 | . . 2 Burn 1 | . . 1 Corrupt 1 | . . 1 Melee Attacks . | . . . Impact . | . . . Slashing . | . . . Piercing . | . . . Sneak Attacks . | . . . Combat Hostiles . | . . . Follow-up Attacks . | . . . Damage Inflicted 485 | . . 485 Guns 399 | . . 399 Cannons . | . . . Explosions . | . . . Melee . | . . . Ramming 32 | . . 32 Kinetic 221 | . . 221 Thermal 126 | . . 126 Explosive . | . . . Electromagnetic 106 | . . 106 Impact . | . . . Slashing . | . . . Piercing . | . . . Highest Corruption . | . . . Average Corruption . | . . . Corruption Purged . | . . . Corruption Blocked . | . . . Overload Shots . | . . . Overflow Damage . | . . . Projectiles . | . . . Explosions . | . . . Melee . | . . . Knockbacks . | . . . Impact . | . . . Kinetic . | . . . Secondary . | . . . Self-Inflicted Damage 2 | . . 2 Shots . | . . . Rammed 1 | . . 1 Targets Rammed 7 | . . 7 Kicked 6 | . . 6 Crushed . | . . . Highest Temperature 162 | . . 162 Average Temperature 53 | . . 53 Received Heat Transfer 579 | . . 579 Siege Activations . | . . . Martial Activations . | . . . Shielding Activations . | . . . Robots Disrupted . | . . . Combat Hostiles . | . . . Robots Corrupted . | . . . Combat Hostiles . | . . . Parts Fried 1 | . . 1 Impact Corruptions . | . . . Robots Melted . | . . . Combat Hostiles . | . . . Parts Melted . | . . . Heat Transferred 444 | . . 444 Parts Sabotaged . | . . . Parts Stolen . | . . . Parts Stripped . | . . . Power Chain Reactions . | . . . Alert | -11 -10 -9 ------- Run | Yrd Mat Mat Maximum Alert Level . | . . . Low Security (%) 100 | 100 100 100 Level 1 . | . . . Level 2 . | . . . Level 3 . | . . . Level 4 . | . . . Level 5 . | . . . High Security . | . . . Max Security . | . . . Peak Influence 121 | . 4 121 Initial . | . . . Average 25 | . . 35 Influence Increases 340 | . 8 332 Destroy 0b10 Robot/C 100 | . . 100 Destroy 0b10 Robot/NC 5 | . . 5 Destroy Leader 30 | . . 30 Successful Hack 8 | . 8 . Disable Machine 30 | . . 30 Destroy Structure 2 | . . 2 Lose Combat Pursuer 165 | . . 165 Influence Decreases 287 | . 8 279 Time Decay 197 | . 8 189 Lost Part 90 | . . 90 Squads Dispatched 3 | . 1 2 Investigation 1 | . . 1 Extermination . | . . . Reinforcement 2 | . 1 1 Assault . | . . . Garrison . | . . . Intercept . | . . . Searches Triggered . | . . . Construction Impeded . | . . . Haulers Reinforced . | . . . Active Scanning Responses . | . . . Cargo Convoy Interrupts . | . . . Stealth | -11 -10 -9 --------- Run | Yrd Mat Mat Distress Signals . | . . . Communications Jammed . | . . . Distress Signals . | . . . Times Spotted 28 | . 2 26 Peak Tracking Total 8 | . 1 8 Tactical Retreats 6 | . . 6 Traps | -11 -10 -9 ------- Run | Yrd Mat Mat Traps Triggered 1 | . . 1 Indirectly . | . . . Trap Hack Attempts . | . . . Triggered . | . . . Disarmed . | . . . Reprogrammed . | . . . Reused . | . . . Traps Extracted . | . . . Installed . | . . . Triggered . | . . . Machines | -11 -10 -9 ---------- Run | Yrd Mat Mat Machines Disabled 2 | . . 2 Max in Single Turn 1 | . . 1 Machines Repaired . | . . . Machines Dismantled . | . . . Machines Sabotaged . | . . . Overloaded Fab Kills . | . . . Hacking | -11 -10 -9 --------- Run | Yrd Mat Mat Machines Accessed 4 | . 2 2 Terminals 2 | . 2 . Fabricators . | . . . Repair Stations . | . . . Recycling Units 1 | . . 1 Scanalyzers 1 | . . 1 Garrison Access . | . . . Total Hacks 5 | . 3 2 Successful 3 | . 2 1 Failed 2 | . 1 1 Catastrophic . | . . . Database Lockouts . | . . . Manual . | . . . Terminals 3 | . 3 . Fabricators . | . . . Repair Stations . | . . . Recycling Units 1 | . . 1 Scanalyzers 1 | . . 1 Garrison Access . | . . . Terminal Hacks 2 | . 2 . Emergency Access Points 2 | . 2 . Fabricator Hacks . | . . . Repair Station Hacks . | . . . Recycling Unit Hacks 1 | . . 1 Report Inventory 1 | . . 1 Scanalyzer . | . . . Garrison Access Hacks . | . . . Unauthorized Hacks . | . . . Terminals . | . . . Fabricators . | . . . Repair Stations . | . . . Recycling Units . | . . . Scanalyzers . | . . . Garrison Access . | . . . Data Cores Recovered . | . . . Used . | . . . Hacking Detections 2 | . 2 . Full Trace Events . | . . . Feedback Events . | . . . Feedback Blocked . | . . . Robot Schematics Acquired . | . . . Robots Built . | . . . Authchips . | . . . Time . | . . . Total Robot Build Rating . | . . . Part Schematics Acquired . | . . . Parts Built . | . . . Authchips . | . . . Time . | . . . Total Part Build Rating . | . . . Parts Repaired . | . . . Time . | . . . Parts Recycled . | . . . Recycled Matter . | . . . Retrieved Matter . | . . . Retrieved Components . | . . . Parts Scanalyzed . | . . . Part Schematics Acquired . | . . . Parts Damaged . | . . . Bothacking | -11 -10 -9 ------------ Run | Yrd Mat Mat Used RIF Installer . | . . . Robots Hacked . | . . . Non-combat . | . . . Combat . | . . . Robot Hacks Applied . | . . . Relay Couplers Released . | . . . Fabnet Peak Effective % . | . . . Robots Rewired . | . . . Allies Hacked . | . . . Hacks Repelled . | . . . Allies | -11 -10 -9 -------- Run | Yrd Mat Mat Total Allies . | . . . Largest Group . | . . . Highest-Rated Group . | . . . Highest-Rated Ally . | . . . Total Orders . | . . . Ally Attacks . | . . . Total Damage . | . . . Kills . | . . . Allies Corrupted . | . . . Allies Melted . | . . . Intel | -11 -10 -9 ------- Run | Yrd Mat Mat Active Infowar (turns) 701 | . 136 565 Sensors 701 | . 136 565 Robot Analysis Total . | . . . Derelict Logs Recovered . | . . . Drone Launches . | . . . Drone Recoveries . | . . . Exploration | -11 -10 -9 ------------- Run | Yrd Mat Mat Turns Passed 788 | 59 164 565 Spaces Moved 533 | 48 129 356 Core 73 | 13 . 60 Treads . | . . . Legs 460 | 35 129 296 Wheels . | . . . Hover . | . . . Flight . | . . . Fastest Speed 50 | 50 120 100 Average Speed 122 | 101 120 125 Slowest Speed 350 | 120 120 350 Overloaded Moves . | . . . Propulsion Burnouts . | . . . Robots Hopped . | . . . Potential Cave-ins . | . . . Cave-ins Triggered . | . . . Exploration Rate (%) 20 | 4 27 31 Regions Visited 2 Branch Regions . Pre-discovered Areas . | . . . Known Exits Taken . | . . . Unknown Exits Taken 2 | 1 1 . Scrap Searched . | . . . Spaces Dug . | . . . Terrain Destroyed . | . . . Melee . | . . . Projectile . | . . . AOE . | . . . Terrain Rammed . | . . . Walls Destroyed . | . . . Machines Disabled . | . . . Actions | -11 -10 -9 --------- Run | Yrd Mat Mat Total 599 | 55 133 411 Wait 6 | . 2 4 Move 531 | 47 128 356 Hop . | . . . Pick Up 7 | 2 . 5 Fast Attach 9 | 6 1 2 Attach 2 | . . 2 Detach . | . . . Swap 4 | . . 4 Drop 2 | . . 2 Fire 31 | . 2 29 Melee . | . . . Ram 1 | . . 1 Kick 6 | . . 6 Crush . | . . . Escape Stasis . | . . . Rewire . | . . . Trap . | . . . Miscellaneous . | . . . Route ------- -11/Scrapyard -10/Materials -9/Materials History --------- Turn | Location | Event 8 | -11/Scrapyard | Discovered new exit (range 15) 60 | -11/Scrapyard | Entered Materials 182 | -10/Materials | Discovered new exit (range 16) 224 | -10/Materials | Entered another Materials area 224 | -9/Materials | Evolved 2 slots: Propulsion x1, Utility x1 315 | -9/Materials | Build established: Mutant 721 | -9/Materials | Core integrity fell below 50% 732 | -9/Materials | Lost 5 parts (1p3n1u) 757 | -9/Materials | Core integrity fell below 20% 785 | -9/Materials | Lost 3 parts (1p2w) 789 | -9/Materials | Destroyed by Y-45 Defender with Heavy Assault Rifle Last Messages --------------- 00647_ Kicked A-02 Transporter out of the way. 00674_ Integration Channel disabled. 00675_ Hrd. Light Armor Plating destroyed. 00681_ M-13 Machinist repairs G-34 Mercenary. 00685_ Aluminum Leg destroyed. 00692_ G-47 Trooper destroyed. 00692_ Switching to secondary target: G-34 Mercenary. 00695_ Acquired 7 matter. 00701_ Imp. Ion Engine destroyed. 00733_ Hvy. Assault Rifle destroyed. 00735_ U-05 Engineer destroyed. 00735_ Acquired 5 matter. 00738_ Beam Rifle destroyed. 00750_ Slammed into S-10 Pest. 00754_ Ion Engine destroyed. 00757_ K-01 Serf collects debris. 00758_ G-34 Mercenary destroyed. 00760_ K-01 Serf collects debris. 00789_ Critical hit (Burn: +37). Map ----- +----------------------------------------------------+ | #??????## ##????????????????????????????????? | | ######### #?????????????????????????????????? | | ## # # #?????????????????????????????????? | | # # + #?????????????????????????????????? | | # # # = #?????????????????????????????????? | | # # ! # % #?????????????????????????????????? | | # ######### ##???????????????#????????????????? | | # #??????# ##########+#### ##### ?????????? | | # #??????# ????????? | | ?# #??????# T ????????? | | ?# #??????# % ????????? | | ?# #??????# ####### ###########????????????? | | ?# #??????#######?????# ##########?????????????? | | ?# #??????????????????# # #?????????????? | | ## #################### + """" ??????????????? | | # ""S"" ??????????????? | | ? # "" "" ??????????????? | | %?? # /?????????????? | | ############+########## # """ ##????????????? | | # #??????# # """ ??????????????? | | # """ #??????# #= """ ??????????????? | | # """ "" "" #??????# # ??????????????? | | # """ ""S"" #??????# #########??????????????? | | #?""" """" #??????# #??????????????????????? | | #? #??????# #??????????????????????? | | ###############??????# u@#??????????????????????? | | #????????????????????# #??????????????????????? | | ##????????????????????# #??????????????????????? | | ??????????????????????# #??????????????????????? | | ??????????????????????# +??????????????????????? | | ??????????????????????# #??????????????????????? | | ??????????????????????# #??????????????????????? | | ?????????????????????? ??????????????????????? | | ?????????????????????? ??????????????????????? | | ????????????????????? Y ??????????????????????? | | ????????????????????? ??????????????????????? | | ?????????????????????# ??????????????????????? | | ?????????????????????###/##??????????????????????? | | ????????????????????????w????????????????????????? | | ????????????????????????"????????????????????????? | | ?????????????????????????????????????????????????? | | ?????????????????????????????????????????????????? | | ?????????????????????????????????????????????????? | | ?????????????????????????????????????????????????? | | ?????????????????????????????????????????????????? | | ?????????????????????????????????????????????????? | | ?????????????????????????????????????????????????? | | ?????????????????????????????????????????????????? | | ?????????????????????????????????????????????????? | | ?????????????????????????????????????????????????? | +----------------------------------------------------+ Best States ------------- Heat Dissipation 28 Energy Generation 12 Energy Capacity 265 Matter Stores 300 Matter Capacity 300 Sight Range 16 Robot Scan Range 14 Terrain Scan Density 10 Armor Coverage 150 Evasion (%) 55 Item Schematics ----------------- None Robot Schematics ------------------ None Fabricated ------------ Nothing Repaired ---------- Nothing Alien Tech Used ----------------- None Achievements -------------- None Challenges ------------ None Game ------ Seed GrenadeSuperdenseDriver Manual? 0 Play Time 00:17:01 Cumulative 17.1 hours Start 2025.07.28 @ 20:30:02 End 2025.07.28 @ 20:53:10 Sessions 1 Manual Loads 0 Difficulty Rogue Special Mode None Game No. 21 Rogue 21 Adventurer 0 Explorer 0 Win Type - Total 0 Types 0/0/0/0/0/0/0/0/0/0 Lore% 10 Gallery% 13 Achievement% 15 Wizard Run 0 Options --------- Layout 1 ASCII 0 Keyboard 0 Movement Numpad Keybinds 1 Fullscreen 2 Font 32/SmallcapsGlow Map View 50x40 Zoom Use 7% Tactical HUD 1 Map Filters NONE Filters NONE Steam 1 RUN: 53be27b4-6716-4024-a082-9969f11e282f